Cogmind - Beta 15 @@@ ROGUE MODE // 2025.10.03 @ 01:57:18 Player: shapeshifter Result: Destroyed by P-80 Master with Gamma Rifle Performance ------------- Evolutions (9) 4500 Regions Visited (27) 5400 Robots Destroyed (232) 1160 Value Destroyed (11398) 11398 Prototype IDs (52) 1040 Alien Tech Used (0) 0 Bonus (8787) 8787 TOTAL SCORE: 32285 Bonus ------- High Alert Combat Kills 1447 Follower Combat Kills 2247 Entered Garrisons 800 Used RIF Installer 2500 Entered DSFs 1000 Aligned with FarCom 300 Scanned by Researcher 500 Friendly Fire -7 Cogmind --------- Core Integrity 0/1600 Matter 70/300 Energy 67/100 System Corruption 18% Temperature Cool (1) Movement Core (50) Location -1/Access Parts ------- > --- POWER (3) -------- (None) > --- PROPULSION (6) --- (None) > --- UTILITY (13) ----- (None) > --- WEAPON (3) ------- (None) > --- INVENTORY (5) ---- (None) Peak State ------------ > --- POWER ------------ Light Quantum Reactor Reinforced Quantum Reactor Reinforced Quantum Reactor > --- PROPULSION ------- Improved Thunder Leg Centrium Leg Centrium Leg Heavy Shield Leg High-density Centrium Leg > --- UTILITY ---------- Advanced Power Amplifier Advanced Heat Sink Lightpack 2.0 Advanced Sensor Array Advanced Signal Interpreter Advanced Targeting Computer Centrium Heavy Armor Plating Graphene Brace Improved Remote Force Field System Mapper > --- WEAPON ----------- Null Cannon Guided Micro-nuke Launcher > --- INVENTORY -------- Light Quantum Reactor Reinforced Quantum Reactor Centrium Leg Centrium Leg Centrium Leg Heavy Shield Leg Heavy Shield Leg Heavy Shield Leg Heavy Shield Leg Heavy Shield Leg Cooled Field Propulsion Drive Cooled Field Propulsion Drive Improved Energy Well Advanced Energy Well Precision Energy Filter Advanced Particle Charger Advanced Particle Charger Advanced Particle Charger Graphene Brace Improved Remote Force Field Authchip [R/Combat] Relay Coupler [Cutter] Relay Coupler [Brawler] Advanced Component Analysis Suite Enhanced Quantum Rifle Enhanced Quantum Rifle Enhanced Nova Cannon Fusion Bomb Launcher [Rating: 236] Favorites ----------- Power Reinforced Quantum Reactor Engine Improved Deuterium Engine Power Core Light Nuclear Core Reactor Reinforced Quantum Reactor Propulsion Centrium Leg Treads Light Treads Leg Centrium Leg Wheel Wheel Hover Unit Cooled Airjet Flight Unit Cooled Field Propulsion Drive Utility Lightpack 2.0 Device Advanced Heat Sink Storage Lightpack 2.0 Processor Advanced Targeting Computer Hackware Hacking Suite Protection Improved Light Armor Plating Weapon Pulse Rifle Energy Gun Pulse Rifle Energy Cannon Heavy Particle Cannon Ballistic Gun Hypervelocity Gauss Rifle Ballistic Cannon Perforator Launcher Guided Micro-nuke Launcher Special Weapon Remote Datajack Build | -11 -10 -10 -9 -9 -9 -8 -8 -8 -8 -7 -7 -7 -7 -7 -6 -6 -6 -6 -5 -5 -4 -4 -3 -3 -2 -2 -1 ------- Run | Yrd Mat Min Mat Min Exi Min Mat Gar Mat Fac Was Fac Gar Fac Fac Was Fac DSF Fac Gar Fac Gar Res DSF Res Tes Acc Slots Evolved 18 | . . . 2 . . . 2 . . 2 . . . . 2 . . . 2 . 2 . 2 . 2 . 2 Power 2 | . . . . . . . . . . . . . . . . . . . . . . . 1 . 1 . . Propulsion 4 | . . . . . . . 1 . . . . . . . 1 . . . . . 1 . . . . . 1 Utility 11 | . . . 2 . . . 1 . . 2 . . . . 1 . . . 2 . 1 . . . 1 . 1 Weapon 1 | . . . . . . . . . . . . . . . . . . . . . . . 1 . . . . Parts Attached 262 | 7 11 1 18 7 3 8 31 12 8 5 3 5 12 5 14 1 . 7 5 11 8 9 . 18 12 27 14 Power 30 | 1 1 1 1 1 . 1 4 1 1 . . 1 3 . 1 . . 2 . 2 1 1 . 3 1 2 1 Engine 11 | 1 1 1 1 . . 1 4 1 . . . . . . . . . 1 . . . . . . . . . Core 10 | . . . . 1 . . . . 1 . . 1 2 . 1 . . 1 . 2 . 1 . . . . . Reactor 9 | . . . . . . . . . . . . . 1 . . . . . . . 1 . . 3 1 2 1 Propulsion 57 | 2 4 . 3 1 . 4 7 3 1 3 . . 2 2 5 . . 1 . 2 1 2 . 5 . 4 5 Treads 9 | 2 2 . . . . 1 . 3 1 . . . . . . . . . . . . . . . . . . Leg 11 | . . . . . . . . . . . . . . . . . . . . . . . . 5 . 4 2 Wheel 15 | . 2 . 3 1 . 3 6 . . . . . . . . . . . . . . . . . . . . Hover 19 | . . . . . . . 1 . . 3 . . 2 2 5 . . 1 . 2 1 2 . . . . . Flight 3 | . . . . . . . . . . . . . . . . . . . . . . . . . . . 3 Utility 109 | 2 3 . 9 2 . 3 12 4 1 2 3 2 3 3 7 . . 1 3 5 5 5 . 7 9 12 6 Device 48 | 1 2 . 4 2 . 2 7 2 . 1 1 . . 1 . . . . . 1 2 1 . 4 7 5 5 Storage 6 | 1 1 . . . . 1 . 1 . . . . . . . . . . . . . . . . . 2 . Processor 7 | . . . 1 . . . 1 . . . . . . . . . . 1 1 1 . . . . . 1 1 Hackware 27 | . . . . . . . . . . 1 1 2 2 2 6 . . . . 2 2 2 . 2 2 3 . Protection 21 | . . . 4 . . . 4 1 1 . 1 . 1 . 1 . . . 2 1 1 2 . 1 . 1 . Artifact . | . . . . . . . . . . . . . . . . . . . . . . . . . . . . Weapon 66 | 2 3 . 5 3 3 . 8 4 5 . . 2 4 . 1 1 . 3 2 2 1 1 . 3 2 9 2 Energy Gun 29 | . 1 . 5 1 2 . 4 2 2 . . . 1 . . . . 1 . 1 . . . 3 2 3 1 Energy Cannon 11 | . 2 . . 2 1 . 2 . . . . . . . . . . . . . . . . . . 4 . Ballistic Gun 13 | 2 . . . . . . . 1 2 . . 1 2 . . . . 2 1 . 1 1 . . . . . Ballistic Cannon 1 | . . . . . . . . . . . . . . . . . . . . . . . . . . 1 . Launcher 7 | . . . . . . . 2 1 . . . 1 . . . . . . 1 . . . . . . 1 1 Special Weapon 5 | . . . . . . . . . 1 . . . 1 . 1 1 . . . 1 . . . . . . . Impact Weapon . | . . . . . . . . . . . . . . . . . . . . . . . . . . . . Slashing Weapon . | . . . . . . . . . . . . . . . . . . . . . . . . . . . . Piercing Weapon . | . . . . . . . . . . . . . . . . . . . . . . . . . . . . Special Melee Weapon . | . . . . . . . . . . . . . . . . . . . . . . . . . . . . Unidentified Prototypes 23 | . 1 . 1 . . . 4 . 2 . . . . . . . . 1 . . . . . . 1 11 2 Corrupted Parts 1 | . . . . . . . . . . . . . . . . . . . . 1 . . . . . . . System Corruption 1 | . . . . . . . . . . . . . . . . . . . . 1 . . . . . . . Parts Lost 77 | . 1 . 2 1 . 4 2 2 1 . . . 4 . 2 . . . . 5 3 10 . 1 8 10 21 Power 9 | . . . . . . 1 1 . . . . . 1 . . . . . . . 1 . . . . 2 3 Propulsion 19 | . . . . . . 2 1 2 . . . . 1 . . . . . . 2 . 3 . . . . 8 Utility 33 | . . . 2 1 . 1 . . 1 . . . . . . . . . . 2 . 4 . 1 6 7 8 Weapon 16 | . 1 . . . . . . . . . . . 2 . 2 . . . . 1 2 3 . . 2 1 2 Highest Loss Streak 20 | . 1 . 1 1 . 4 1 1 1 . . . 4 . 1 . . . . 2 2 7 . 1 3 5 20 To Critical Strikes . | . . . . . . . . . . . . . . . . . . . . . . . . . . . . Average Backups 25 | 3 7 9 16 18 18 17 17 19 39 36 38 39 38 37 36 36 37 39 39 38 37 37 38 34 31 29 21 Power . | . . . . . . . . . . 2 2 1 1 1 . . . 1 2 2 1 1 1 1 1 3 1 Propulsion 5 | 1 1 . 3 5 4 4 5 7 7 5 5 5 5 4 8 12 12 6 6 6 4 5 4 5 6 6 7 Utility 12 | . 2 8 6 5 6 8 6 6 23 21 23 23 23 25 22 20 20 21 21 21 24 24 22 18 16 13 9 Weapon 4 | . 2 1 6 6 7 3 3 3 4 5 5 4 2 1 1 2 2 7 8 6 3 4 8 6 4 4 3 Tool/Special . | . . . . . . . . . . . . . . . . . . . . . . . . . . . . Unused Backups 139 | . 4 . 7 1 2 . 13 6 5 1 2 4 9 3 5 . . 14 . 9 1 4 . 19 5 9 16 Power 8 | . 1 . . . . . . . . . 1 1 2 . . . . . . 1 . . . . . 1 1 Propulsion 27 | . . . 1 1 . . 4 2 1 . . . . . . . . 2 . 2 . . . 6 1 . 7 Utility 78 | . 1 . 2 . 2 . 5 3 2 1 1 3 6 2 5 . . 11 . 4 1 3 . 10 4 5 7 Weapon 21 | . 2 . 4 . . . 4 . . . . . 1 1 . . . . . 2 . 1 . 3 . 2 1 Tool/Special 5 | . . . . . . . . 1 2 . . . . . . . . 1 . . . . . . . 1 . Average Slot Usage (%) 89 | . 100 100 98 100 77 85 98 93 80 76 84 84 79 81 84 80 80 84 87 87 87 83 66 83 89 84 74 Engine 4 | . 14 14 11 5 . 7 8 9 6 . . . . . . . . . . . . . . . . . . Core 2 | . . . . 5 11 . . . 2 7 7 7 7 7 6 6 6 5 5 5 1 4 4 . . . . Reactor 2 | . . . . . . . . . . . . . . . . . . . . . 3 . . 7 12 12 11 Treads 4 | . 22 . . . . 1 . 13 27 2 . . . . . . . . . . . . . . . . . Leg 3 | . . . . . . . . . . . . . . . . . . . . . . . . 21 21 21 18 Wheel 9 | . 5 28 22 22 22 13 26 10 . . . . . . . . . . . . . . . . . . . Hover 6 | . . . . . . . . . . 19 23 23 23 23 25 26 26 26 23 22 26 23 23 1 . . . Device 13 | . 14 14 10 11 11 19 18 24 1 3 2 6 7 6 5 6 6 1 . 2 8 3 9 18 26 23 18 Storage 8 | . 14 14 11 11 11 11 9 9 9 7 7 7 7 7 6 6 6 6 5 5 5 5 4 4 4 5 3 Processor 5 | . . . 7 11 11 11 9 . . . . . . . . . . 4 11 11 15 15 14 9 8 8 6 Hackware 3 | . . . . . . . . . . 4 14 15 8 7 14 13 13 13 11 14 11 12 9 3 . 1 3 Protection 7 | . . . 14 10 11 . 8 8 15 15 12 7 10 15 9 13 13 13 16 10 5 7 . 3 2 1 3 Energy Gun 6 | . . . 14 19 . 11 8 14 7 . . . . . . . . . . . . . . 9 12 3 . Energy Cannon 3 | . 4 28 7 2 . 7 9 . . . . . . . . . . . . . . . . . . 4 3 Ballistic Gun 3 | . 23 . . . . . . 2 10 7 7 6 4 4 5 . . 4 4 9 7 8 . . . . . Special Weapon 1 | . . . . . . . . . . 7 7 7 6 7 6 6 6 6 5 1 1 . . . . . . Peak Build Rating 236 | 7 10 10 18 18 24 22 38 67 67 77 77 81 88 86 97 101 92 102 107 111 123 121 109 187 206 223 236 Average Rating 75 | 5 7 10 15 17 16 18 33 41 64 74 76 79 83 83 92 92 92 98 105 107 118 113 108 167 199 205 217 On Entrance 76 | . 7 10 10 17 14 22 20 37 67 63 77 77 81 82 83 92 92 92 100 106 110 117 108 109 182 204 166 Naked Turns 8 | . . . . . . . . . . . . . . . . . . . . . . . . . . . 8 Heaviest Build 166 | 13 52 52 64 62 65 54 73 73 29 22 26 26 31 24 29 24 24 33 29 30 35 41 25 103 134 158 166 Greatest Support 180 | 40 40 20 28 22 20 20 36 60 60 27 27 27 28 28 33 32 32 32 32 32 40 48 40 150 150 150 180 Greatest Overweight (x) 14 | . 2 2 3 2 3 14 3 6 . . . . 1 . . . . 1 . . . 1 . . . 1 1 Average Overweight (x) . | . . 2 2 2 2 2 1 1 . . . . . . . . . . . . . . . . . . . Largest Inventory Capacity 40 | 8 20 20 20 20 20 20 20 40 40 40 40 40 40 40 40 40 40 40 40 40 40 40 40 40 40 40 40 Average Capacity 29 | 7 10 20 20 20 20 20 20 22 40 40 40 40 40 40 40 40 40 40 40 40 40 40 40 40 40 40 37 Most Carried 40 | 6 9 10 20 20 20 20 20 40 40 40 40 40 40 40 40 37 37 40 40 40 39 40 39 40 40 40 34 Average Carried 26 | 3 7 9 16 18 19 19 19 21 39 36 38 39 38 36 36 36 37 39 39 38 36 37 38 39 36 35 26 Final Capacity 40 | 8 20 20 20 20 20 20 20 40 40 40 40 40 40 40 40 40 40 40 40 40 40 40 40 40 40 40 5 Final Carried 40 | 5 9 9 19 20 20 20 20 40 40 36 40 40 39 35 37 37 37 40 40 40 35 38 39 39 40 39 . Class Distribution -------------------- 38% | Mutant 30% | Bothacker-Mutant 11% | Scavenger-Mutant 6% | Hauler-Tank 4% | Bothacker-Tank Dominant Class ---------------- Mutant | -10/Materials Mutant | -10/Mines Mutant | -9/Materials Mutant | -9/Mines Mutant | -9/Exiles Scavenger-Mutant | -8/Mines Mutant | -8/Materials Mutant | -8/Garrison Bothacker-Mutant | -8/Materials Bothacker-Mutant | -7/Factory Bothacker-Mutant | -7/Waste Bothacker-Mutant | -7/Factory Bothacker-Mutant | -7/Garrison Bothacker-Mutant | -7/Factory Bothacker-Mutant | -6/Factory Bothacker-Mutant | -6/Waste Bothacker-Mutant | -6/Factory Bothacker-Mutant | -6/DSF Bothacker-Mutant | -5/Factory Bothacker-Mutant | -5/Garrison Botlord-Mutant | -4/Factory Bothacker-Mutant | -4/Garrison Bothacker-Mutant | -3/Research Bothacker-Tank | -3/DSF Bothacker-Tank | -2/Research Hauler-Tank | -2/Testing Hauler-Tank | -1/Access Resources | -11 -10 -10 -9 -9 -9 -8 -8 -8 -8 -7 -7 -7 -7 -7 -6 -6 -6 -6 -5 -5 -4 -4 -3 -3 -2 -2 -1 ----------- Run | Yrd Mat Min Mat Min Exi Min Mat Gar Mat Fac Was Fac Gar Fac Fac Was Fac DSF Fac Gar Fac Gar Res DSF Res Tes Acc Matter Collected 6635 | 318 249 185 306 147 . 271 424 459 369 . 130 74 468 124 304 . . 333 . 879 201 363 . 264 215 481 71 Remotely 124 | . . . . . . 124 . . . . . . . . . . . . . . . . . . . . . Salvage Created 9705 | 137 320 74 901 198 . 158 1744 687 618 . . . 113 13 247 . . . . 1354 80 208 . 317 1531 703 302 Parts 490 | 11 35 5 56 9 . 11 82 31 27 . . . 5 4 14 . . . . 55 5 18 . 11 71 34 6 Haulers Intercepted 15 | . 1 . 4 . . . 5 . 2 . . . . . 1 . . . . . . . . . 1 . 1 Recyclers Shooed 4 | . . . . . . 1 1 . . . . . . . 2 . . . . . . . . . . . . Parts Field Recycled . | . . . . . . . . . . . . . . . . . . . . . . . . . . . . Retrieved Matter . | . . . . . . . . . . . . . . . . . . . . . . . . . . . . Parts Self-Destructed . | . . . . . . . . . . . . . . . . . . . . . . . . . . . . Prevented . | . . . . . . . . . . . . . . . . . . . . . . . . . . . . Kills | -11 -10 -10 -9 -9 -9 -8 -8 -8 -8 -7 -7 -7 -7 -7 -6 -6 -6 -6 -5 -5 -4 -4 -3 -3 -2 -2 -1 ------- Run | Yrd Mat Min Mat Min Exi Min Mat Gar Mat Fac Was Fac Gar Fac Fac Was Fac DSF Fac Gar Fac Gar Res DSF Res Tes Acc Combat Hostiles Destroyed 167 | . 10 2 16 8 . 3 22 19 10 . . . 2 . 3 . . . . 17 3 6 . 4 22 13 7 Melee 1 | . . . . . . . . . . . . . . . . . . . . . . 1 . . . . . Guns 110 | . 9 . 13 3 . 3 5 13 8 . . . 2 . 3 . . . . 17 3 5 . 4 22 . . Cannons 34 | . 1 2 3 5 . . 16 . . . . . . . . . . . . . . . . . . 4 3 AOE 20 | . . . . . . . . 5 2 . . . . . . . . . . . . . . . . 9 4 Classes Destroyed 18 | 3 5 . 3 1 . . 2 1 . . . . . . . . . . . . . 1 . 1 . 1 . Worker 11 | 1 . . . . . 1 2 . . . . . . . 3 . . . . . . . . . 1 2 1 Builder 10 | . 1 . 1 . . . 3 . . . . . . . . . . . . . . . . . . 4 1 Tunneler 7 | 3 . . . 1 . 1 1 . . . . . . 1 . . . . . . . . . . . . . Hauler 15 | . 1 . 4 . . . 5 . 2 . . . . . 1 . . . . . . . . . 1 . 1 Recycler 10 | 1 . . 2 . . 1 3 . 2 . . . . . . . . . . . . . . . . . 1 Operator 3 | . . . 1 . . . 1 . 1 . . . . . . . . . . . . . . . . . . Watcher 11 | . 2 . 3 . . . 4 . . . . . . . . . . . . 1 . . . . 1 . . Swarmer 37 | . 8 . 5 . . . . 3 2 . . . . . . . . . . . 3 3 . 2 8 3 . Saboteur 2 | . . . . . . . . . . . . . . . . . . . . . . 2 . . . . . Grunt 66 | . 2 2 5 4 . 3 13 6 7 . . . . . 1 . . . . 9 . . . . 8 4 2 Brawler 3 | . . . 1 . . . . 2 . . . . . . . . . . . . . . . . . . . Duelist 3 | . . . . . . . 1 1 . . . . . . . . . . . . . . . . 1 . . Researcher 2 | . . . . . . . . . . . . . . . . . . . . . . . . . . 2 . Sentry 25 | . . . 5 . . . 6 3 1 . . . 1 . . . . . . 6 . 1 . . 1 . 1 Specialist 1 | . . . . . . . . . . . . . . . . . . . . . . . . 1 . . . Hunter 9 | . . . . . . . 2 1 . . . . . . . . . . . . . . . 1 2 . 3 Programmer 17 | . . . . . . . . 3 . . . . 1 . 2 . . . . 2 . . . . 2 6 1 Assembled 4 | . . . . 4 . . . . . . . . . . . . . . . . . . . . . . . Best Kill Streak 8 | 2 6 2 5 3 . 3 5 3 4 . . . 1 1 5 . . . . 8 2 3 . 2 7 7 3 Combat Bots Only 8 | . 6 2 3 3 . 3 4 3 2 . . . 1 . 1 . . . . 8 2 3 . 2 6 3 3 Max Kills in Single Turn 3 | 1 1 1 2 1 . 1 2 2 1 . . . 1 1 1 . . . . 2 2 1 . 1 3 3 3 Gunslinging 2 | . . . . . . . . . . . . . . . . . . . . . . . . . 2 . . Exploded 3 | . . . . . . . . 2 1 . . . . . . . . . . . . . . . . 3 2 Melee 1 | . . . . . . . . . . . . . . . . . . . . . . 1 . . . . . Uniques/NPCs Destroyed . | . . . . . . . . . . . . . . . . . . . . . . . . . . . . Combat | -11 -10 -10 -9 -9 -9 -8 -8 -8 -8 -7 -7 -7 -7 -7 -6 -6 -6 -6 -5 -5 -4 -4 -3 -3 -2 -2 -1 -------- Run | Yrd Mat Min Mat Min Exi Min Mat Gar Mat Fac Was Fac Gar Fac Fac Was Fac DSF Fac Gar Fac Gar Res DSF Res Tes Acc Hostile Shots Fired 1757 | . 48 5 63 21 . 33 120 74 38 . . 15 49 30 47 . . 8 . 111 22 117 . 34 219 202 501 Missed 659 | . 11 1 16 5 . 3 32 15 7 . . 6 15 11 23 . . 1 . 47 10 47 . 14 101 93 201 Hits 1098 | . 37 4 47 16 . 30 88 59 31 . . 9 34 19 24 . . 7 . 64 12 70 . 20 118 109 300 Melee 32 | . . . 1 2 . . . . . . . . . . . . . . . . . 2 . . . 27 . Projectile 1066 | . 37 4 46 14 . 30 88 59 31 . . 9 34 19 24 . . 7 . 64 12 68 . 20 118 82 300 AOE 5 | . . . . . . . . . . . . . . . . . . . . . 1 . . . . 4 . Critical Strikes 50 | . 2 . 2 . . 5 1 2 . . . . 4 . 1 . . . . 1 . 2 . 2 7 11 10 Actively Blocked 28 | . . . . . . . . . . . . . . . . . . . . . . 2 . 2 7 11 6 Part Disruptions 2 | . . . . 1 . . . . . . . 1 . . . . . . . . . . . . . . . Damage Taken 20011 | . 421 56 594 211 . 491 1050 662 418 . . 126 694 187 512 . . 104 . 1115 364 1299 . 374 2457 2511 6365 Core 3299 | . 21 18 58 12 . 119 124 153 28 . . 59 146 32 66 . . 19 . 225 43 163 . 21 158 215 1619 Absorbed by Shields 2759 | . . . . . . . 305 233 13 . . . . 20 . . . . . 217 . 77 . 80 268 1045 501 Redirected to Shielding 200 | . . . . . . . . . 10 . . 1 26 65 20 . . . . 25 . 53 . . . . . Regen/Repaired (Parts) 19 | . . . . . . . . . . . . 1 18 . . . . . . . . . . . . . . Core Remaining (%) 76 | 100 . 84 . . . 52 . . 44 . . . . 66 . . . 90 . 77 . 82 . 98 . 74 . Volleys Fired 828 | 24 49 5 65 36 . 19 104 74 43 . 8 14 45 15 54 2 . 6 2 79 16 29 . 15 50 49 25 Largest 3 | 2 2 2 2 2 . 2 2 2 2 . 1 1 2 1 1 1 . 1 1 2 2 2 . 3 3 3 1 Hottest 200 | 40 120 120 130 140 . 140 150 126 126 . 5 36 66 33 33 . . 33 43 88 66 88 . 195 195 200 130 Shots Fired 1357 | 48 98 10 131 43 . 29 205 114 82 . 8 14 48 15 54 2 . 5 2 119 22 48 . 41 140 54 25 Gun 963 | 48 84 . 71 14 . 26 80 106 80 . . 3 40 11 34 . . 5 . 110 19 44 . 39 137 12 . Cannon 293 | . 14 10 60 29 . 3 125 . . . . . . . . . . . . . . . . . . 35 17 Launcher 22 | . . . . . . . . 8 2 . . 2 . . . . . . 2 . . . . . . . 8 Special 79 | . . . . . . . . . . . 8 9 8 4 20 2 . . . 9 3 4 . 2 3 7 . Kinetic 472 | 48 84 . . . . . . 29 49 . . 3 40 11 34 . . 5 . 107 19 43 . . . . . Thermal 784 | . 14 10 131 43 . 29 205 77 31 . . . . . . . . . . 3 . 1 . 39 137 47 17 Explosive 22 | . . . . . . . . 8 2 . . 2 . . . . . . 2 . . . . . . . 8 Electromagnetic . | . . . . . . . . . . . . . . . . . . . . . . . . . . . . Robot Hit Streak 25 | 4 15 9 12 10 . 13 25 23 11 . 4 9 9 10 7 2 . 3 . 11 8 11 . 7 14 4 10 Robot Miss Streak 8 | 5 4 1 8 6 . 3 3 2 4 . 1 2 6 3 2 . . 2 . 4 7 3 . 4 6 3 2 Penetration Max 2 | . . . . . . . . 1 . . . . . . . . . . . 2 2 1 . . . . . Secondary Targets 19 | . 4 . 2 . . 2 . 3 . . . . . . . . . . . . . . . 1 7 . . Max Gunslinging Chain 2 | . 1 . 1 . . 1 . 1 . . . . . . . . . . . . . . . 1 2 . . Shots Hit Robots 890 | 29 64 9 99 25 . 27 153 62 52 . 7 9 25 11 39 2 . 3 . 82 10 27 . 23 91 22 19 Core Hits 512 | 12 24 3 96 23 . 37 61 38 27 . . 4 5 2 11 . . 1 . 46 4 12 . 9 53 27 17 Critical Kills 23 | . . . . . . . 1 . . . . . . . . . . . . 16 3 3 . . . . . Critical Parts Destroyed 30 | 1 . . . . . . . . . . . . . . . . . . . 21 3 5 . . . . . Critical Strikes 64 | 1 . . . . . . 4 2 2 . . . . . . . . . . 40 6 9 . . . . . Burn 7 | . . . . . . . 3 2 2 . . . . . . . . . . . . . . . . . . Meltdown 1 | . . . . . . . 1 . . . . . . . . . . . . . . . . . . . . Destroy 56 | 1 . . . . . . . . . . . . . . . . . . . 40 6 9 . . . . . Melee Attacks . | . . . . . . . . . . . . . . . . . . . . . . . . . . . . Impact . | . . . . . . . . . . . . . . . . . . . . . . . . . . . . Slashing . | . . . . . . . . . . . . . . . . . . . . . . . . . . . . Piercing . | . . . . . . . . . . . . . . . . . . . . . . . . . . . . Sneak Attacks . | . . . . . . . . . . . . . . . . . . . . . . . . . . . . Combat Hostiles . | . . . . . . . . . . . . . . . . . . . . . . . . . . . . Follow-up Attacks . | . . . . . . . . . . . . . . . . . . . . . . . . . . . . Damage Inflicted 22914 | 286 638 158 1504 476 . 396 3412 1714 996 . . 60 601 163 654 . . 19 8 575 69 452 . 715 3007 3900 3111 Guns 11383 | 286 459 . 854 151 . 371 1112 1073 843 . . 53 601 163 654 . . 19 . 575 69 314 . 715 2979 92 . Cannons 6644 | . 179 158 650 325 . 25 2300 . . . . . . . . . . . . . . . . . . 1872 1135 Explosions 4700 | . . . . . . . . 641 153 . . 7 . . . . . . 8 . . . . . . 1915 1976 Melee . | . . . . . . . . . . . . . . . . . . . . . . . . . . . . Ramming 187 | . . . . . . . . . . . . . . . . . . . . . . 138 . . 28 21 . Kinetic 3841 | 286 459 . . . . . . 127 521 . . 53 601 163 654 . . 19 . 575 69 314 . . . . . Thermal 16101 | . 179 158 1504 476 . 396 3412 946 322 . . . . . . . . . . . . . . 715 2979 3879 1135 Explosive 2785 | . . . . . . . . 641 153 . . 7 . . . . . . 8 . . . . . . . 1976 Electromagnetic . | . . . . . . . . . . . . . . . . . . . . . . . . . . . . Impact . | . . . . . . . . . . . . . . . . . . . . . . . . . . . . Slashing . | . . . . . . . . . . . . . . . . . . . . . . . . . . . . Piercing . | . . . . . . . . . . . . . . . . . . . . . . . . . . . . Highest Corruption 18 | . . . 5 6 6 6 2 2 2 . . . 7 10 2 11 11 11 . 3 . 4 . 1 1 9 18 Average Corruption 4 | . . . 5 5 6 6 2 2 2 . . . 6 8 1 9 11 11 . 2 . 4 . 1 1 3 10 Corruption Purged . | . . . . . . . . . . . . . . . . . . . . . . . . . . . . Corruption Blocked . | . . . . . . . . . . . . . . . . . . . . . . . . . . . . Effects 228 | . . . 25 22 14 22 5 27 12 . . . 9 16 4 4 1 22 . 10 . 1 . 3 3 24 4 Message Errors 41 | . . . 6 6 3 5 1 2 2 . . . 1 1 . 1 . 5 . 3 . . . . . 5 . Matter Fused 60 | . . . 6 3 3 7 2 8 6 . . . 3 4 1 2 . 3 . 1 . 1 . 2 1 6 1 Heat Flow Errors 40 | . . . 5 3 4 3 . 5 2 . . . . 6 1 1 . 3 . 3 . . . . 1 2 1 Energy Discharges 29 | . . . 2 2 2 2 1 5 1 . . . 2 1 1 . . 1 . 1 . . . . . 6 2 Parts Rejected 1 | . . . . . . . . 1 . . . . . . . . . . . . . . . . . . . Parts Fused 2 | . . . . . . . . . . . . . . . . . . 1 . . . . . . . 1 . Data Loss (minor) 30 | . . . 1 5 2 3 . 4 1 . . . 1 3 . . . 5 . 1 . . . 1 1 2 . Data Loss (major) 6 | . . . . 1 . . . 1 . . . . . 1 1 . . . . 1 . . . . . 1 . Misfires 6 | . . . 2 1 . 1 . 1 . . . . . . . . . . . . . . . . . 1 . Alerts 7 | . . . 2 . . 1 1 . . . . . . . . . 1 2 . . . . . . . . . Misdirections 1 | . . . . . . . . . . . . . . . . . . 1 . . . . . . . . . Weapon Failures 5 | . . . 1 1 . . . . . . . . 2 . . . . 1 . . . . . . . . . Overload Shots . | . . . . . . . . . . . . . . . . . . . . . . . . . . . . Overflow Damage 859 | . 6 . 17 . . . 25 15 20 . . . . . . . . . . . . 8 . . 3 581 184 Projectiles 425 | . 6 . 17 . . . 25 . . . . . . . . . . . . . . . . . . 329 48 Explosions 423 | . . . . . . . . 15 20 . . . . . . . . . . . . . . . . 252 136 Melee 11 | . . . . . . . . . . . . . . . . . . . . . . 8 . . 3 . . Knockbacks . | . . . . . . . . . . . . . . . . . . . . . . . . . . . . Impact . | . . . . . . . . . . . . . . . . . . . . . . . . . . . . Kinetic . | . . . . . . . . . . . . . . . . . . . . . . . . . . . . Secondary . | . . . . . . . . . . . . . . . . . . . . . . . . . . . . Self-Inflicted Damage 175 | . . . . . . . . . . . . 7 . . . . . . . . . 66 . . . 98 4 Shots 3 | . . . . . . . . . . . . 1 . . . . . . . . . . . . . 1 1 Rammed 9 | . . . . . . . . . . . . . . . . . . . . . . 9 . . . . . Targets Rammed 12 | . . . . . . . . . . . . . . . . . . . . . . 9 . . 1 2 . Kicked 3 | . . . . . . . . . . . . . . . . . . . . . . . . . 1 2 . Crushed . | . . . . . . . . . . . . . . . . . . . . . . . . . . . . Highest Temperature 565 | . 90 120 325 244 263 565 234 378 376 . . . 60 279 247 137 . 143 . 171 9 30 . 63 428 349 312 Average Temperature 93 | . 32 66 85 63 114 251 64 111 106 . . . 31 121 135 81 . 79 . 43 4 16 . 28 121 84 111 Received Heat Transfer 3227 | . 126 30 201 154 . 360 498 244 180 . . 27 18 12 114 . . 9 . 354 24 149 . 7 306 40 374 Effects 23 | . . . 2 . . 7 . 5 . . . . . 4 1 . . . . . . . . . 3 1 . Shutdowns 3 | . . . . . . . . . . . . . . . . . . . . . . . . . 2 1 . Energy Bleed 3 | . . . . . . . . . . . . . . 1 1 . . . . . . . . . 1 . . Interference 9 | . . . . . . 1 . 5 . . . . . 3 . . . . . . . . . . . . . Matter Decay 3 | . . . 1 . . 2 . . . . . . . . . . . . . . . . . . . . . Short Circuit 2 | . . . 1 . . 1 . . . . . . . . . . . . . . . . . . . . . Damage (minor) 3 | . . . . . . 3 . . . . . . . . . . . . . . . . . . . . . Siege Activations . | . . . . . . . . . . . . . . . . . . . . . . . . . . . . Martial Activations . | . . . . . . . . . . . . . . . . . . . . . . . . . . . . Shielding Activations . | . . . . . . . . . . . . . . . . . . . . . . . . . . . . Robots Disrupted . | . . . . . . . . . . . . . . . . . . . . . . . . . . . . Combat Hostiles . | . . . . . . . . . . . . . . . . . . . . . . . . . . . . Robots Corrupted . | . . . . . . . . . . . . . . . . . . . . . . . . . . . . Combat Hostiles . | . . . . . . . . . . . . . . . . . . . . . . . . . . . . Parts Fried . | . . . . . . . . . . . . . . . . . . . . . . . . . . . . Impact Corruptions 2 | . . . . . . . . . . . . . . . . . . . . . . 1 . . 1 . . Robots Melted 2 | . . . . . . . 1 1 . . . . . . . . . . . . . . . . . . . Combat Hostiles 2 | . . . . . . . 1 1 . . . . . . . . . . . . . . . . . . . Parts Melted 28 | . . 1 . 3 . 2 9 7 . . . . . . . . . . . . . . . . 4 2 . Heat Transferred 20928 | . 370 333 2434 671 . 517 6031 2183 851 . . . . . . . . . . . . . . 851 3515 2572 600 Parts Sabotaged 6 | . . . . . . . . . . . . . . . . . . . . . . 6 . . . . . Parts Stolen . | . . . . . . . . . . . . . . . . . . . . . . . . . . . . Parts Stripped . | . . . . . . . . . . . . . . . . . . . . . . . . . . . . Power Chain Reactions . | . . . . . . . . . . . . . . . . . . . . . . . . . . . . Alert | -11 -10 -10 -9 -9 -9 -8 -8 -8 -8 -7 -7 -7 -7 -7 -6 -6 -6 -6 -5 -5 -4 -4 -3 -3 -2 -2 -1 ------- Run | Yrd Mat Min Mat Min Exi Min Mat Gar Mat Fac Was Fac Gar Fac Fac Was Fac DSF Fac Gar Fac Gar Res DSF Res Tes Acc Maximum Alert Level 4 | . . . 1 . . . 1 3 2 1 . 2 3 2 . . . . . 3 2 3 2 2 2 4 3 Low Security (%) 47 | 100 100 100 75 100 . 100 63 5 . . 100 7 . 50 100 100 100 100 100 16 . . . . . . . Level 1 19 | . . . 24 . . . 36 24 . 100 . 52 24 7 . . . . . 22 35 66 . 33 81 18 . Level 2 16 | . . . . . . . . 35 100 . . 39 5 42 . . . . . 37 64 24 100 66 18 3 14 Level 3 13 | . . . . . . . . 35 . . . . 70 . . . . . . 24 . 8 . . . 42 85 Level 4 2 | . . . . . . . . . . . . . . . . . . . . . . . . . . 35 . Level 5 . | . . . . . . . . . . . . . . . . . . . . . . . . . . . . High Security . | . . . . . . . . . . . . . . . . . . . . . . . . . . . . Max Security . | . . . . . . . . . . . . . . . . . . . . . . . . . . . . Peak Influence 1283 | 10 130 40 372 135 . 30 268 998 566 250 80 470 962 504 80 15 . 168 93 775 509 789 429 507 522 1283 914 Initial 724 | . . . . 135 . . . 163 486 235 80 . 273 504 56 15 . . 88 37 406 245 429 321 285 292 724 Average 322 | . 36 3 160 29 . 1 140 611 513 237 31 342 736 292 30 5 . 90 46 473 428 410 429 442 354 887 775 Influence Increases 10484 | 25 291 50 794 97 . 87 823 855 376 15 38 660 839 264 209 . . 168 129 868 155 699 . 216 729 1626 471 Destroy 0b10 Robot/C 4740 | . 200 40 440 80 . 60 440 380 200 . . 180 380 140 100 . . 120 20 440 80 180 . 140 460 520 140 Destroy 0b10 Robot/NC 415 | 25 20 . 65 10 . 15 95 . 25 . . . . 10 20 . . . . 10 . . . 5 15 80 20 Destroy Leader 822 | . 46 10 148 . . 10 138 30 44 . . 40 10 40 32 . . 20 10 30 10 10 . 10 84 68 32 Allied During Kill 789 | . . . 101 3 . . . . . . . 117 275 44 3 . . 28 6 30 31 14 . 15 17 105 . Successful Hack 253 | . 9 . 23 . . . 60 14 19 15 . 21 . . 9 . . . . 12 . 10 . . . 61 . Select Force Hacks 20 | . . . . . . . . . . . . 20 . . . . . . . . . . . . . . . Disable Machine 510 | . . . . . . . . . 45 . . 90 15 . . . . . 15 . . 15 . 15 45 195 75 Anti-Garrison Action 900 | . . . . . . . . 350 . . . 150 150 . . . . . . 100 . 150 . . . . . Destroy Structure 1135 | . 1 . 2 4 . 2 30 66 28 . 38 42 9 . . . . . 78 6 4 5 . 16 18 582 204 Partial Spotted 45 | . . . . . . . . 15 . . . . . . 30 . . . . . . . . . . . . Lose Combat Pursuer 855 | . 15 . 15 . . . 60 . 15 . . . . 30 15 . . . . 240 30 315 . 15 90 15 . Influence Decreases 9769 | 25 288 53 446 445 . 87 571 109 856 303 268 270 267 1109 283 43 . . 244 146 579 286 335 138 716 938 964 Entered New Map 3862 | . . 3 . 213 . . . 89 512 283 150 . 117 458 61 28 . . 80 16 369 106 335 108 222 228 484 Time Decay 3988 | 25 288 50 426 202 . 57 551 . 334 20 118 190 . 246 188 15 . . 164 . 80 . . . 294 470 270 Lost Part 740 | . . . 20 10 . 30 20 20 10 . . . 40 . 10 . . . . 50 30 100 . 10 80 100 210 Lost Ally 904 | . . . . 20 . . . . . . . 80 110 130 24 . . . . 80 100 80 . 20 120 140 . Purge Threat 275 | . . . . . . . . . . . . . . 275 . . . . . . . . . . . . . Squads Dispatched 35 | . 1 . 2 1 . . 3 . 3 . . 4 . 2 5 . . 1 1 . . . . . 2 7 3 Investigation 6 | . . . . . . . 1 . 1 . . 2 . . 2 . . . . . . . . . . . . Extermination 8 | . . . . . . . . . . . . . . 1 1 . . . 1 . . . . . 1 3 1 Reinforcement 14 | . 1 . 2 . . . 1 . 2 . . . . 1 2 . . 1 . . . . . . 1 2 1 Assault 6 | . . . . 1 . . . . . . . 2 . . . . . . . . . . . . . 2 1 Garrison 1 | . . . . . . . 1 . . . . . . . . . . . . . . . . . . . . Intercept . | . . . . . . . . . . . . . . . . . . . . . . . . . . . . Searches Triggered . | . . . . . . . . . . . . . . . . . . . . . . . . . . . . Construction Impeded 1 | . . . . . . . 1 . . . . . . . . . . . . . . . . . . . . Haulers Reinforced 2 | . . . . . . . . . . . . . . . 1 . . . . . . . . . . . 1 Active Scanning Responses . | . . . . . . . . . . . . . . . . . . . . . . . . . . . . Cargo Convoy Interrupts . | . . . . . . . . . . . . . . . . . . . . . . . . . . . . Stealth | -11 -10 -10 -9 -9 -9 -8 -8 -8 -8 -7 -7 -7 -7 -7 -6 -6 -6 -6 -5 -5 -4 -4 -3 -3 -2 -2 -1 --------- Run | Yrd Mat Min Mat Min Exi Min Mat Gar Mat Fac Was Fac Gar Fac Fac Was Fac DSF Fac Gar Fac Gar Res DSF Res Tes Acc Distress Signals 19 | . 3 . 6 2 . . 3 . 2 . . 2 . . . . . . . . . . . . 1 . . Communications Jammed 73 | . . . . . . . . . . . . . 1 . 5 . . . . . . . . . 34 33 . Distress Signals 73 | . . . . . . . . . . . . . 1 . 5 . . . . . . . . . 34 33 . Times Spotted 397 | . 17 2 32 7 . 3 33 20 21 . 6 11 18 7 15 8 . 7 . 38 10 40 . 12 37 28 25 Peak Tracking Total 18 | . 6 2 4 3 . 3 5 3 4 . 3 4 4 3 4 5 . 3 . 12 5 14 . 5 6 5 18 Tactical Retreats 34 | . 1 . 1 . . . 2 . 1 . . . . 2 1 1 . . . 10 2 6 . 1 5 1 . Traps | -11 -10 -10 -9 -9 -9 -8 -8 -8 -8 -7 -7 -7 -7 -7 -6 -6 -6 -6 -5 -5 -4 -4 -3 -3 -2 -2 -1 ------- Run | Yrd Mat Min Mat Min Exi Min Mat Gar Mat Fac Was Fac Gar Fac Fac Was Fac DSF Fac Gar Fac Gar Res DSF Res Tes Acc Traps Triggered 32 | . 2 . . . . . 2 5 1 1 . 2 3 3 3 . . . . 1 1 3 . 1 1 3 . Indirectly . | . . . . . . . . . . . . . . . . . . . . . . . . . . . . Trap Hack Attempts . | . . . . . . . . . . . . . . . . . . . . . . . . . . . . Triggered . | . . . . . . . . . . . . . . . . . . . . . . . . . . . . Disarmed 2 | . 2 . . . . . . . . . . . . . . . . . . . . . . . . . . Reprogrammed . | . . . . . . . . . . . . . . . . . . . . . . . . . . . . Reused . | . . . . . . . . . . . . . . . . . . . . . . . . . . . . Traps Extracted 4 | . . . . 4 . . . . . . . . . . . . . . . . . . . . . . . Installed 4 | . . . . 4 . . . . . . . . . . . . . . . . . . . . . . . Triggered . | . . . . . . . . . . . . . . . . . . . . . . . . . . . . Most Traps Carried 4 | . . . . 4 4 4 4 . . . . . . . . . . . . . . . . . . . . Machines | -11 -10 -10 -9 -9 -9 -8 -8 -8 -8 -7 -7 -7 -7 -7 -6 -6 -6 -6 -5 -5 -4 -4 -3 -3 -2 -2 -1 ---------- Run | Yrd Mat Min Mat Min Exi Min Mat Gar Mat Fac Was Fac Gar Fac Fac Was Fac DSF Fac Gar Fac Gar Res DSF Res Tes Acc Machines Disabled 53 | . . . . . . . . 6 3 . . 7 7 . . . . . 1 2 . 3 . 1 3 15 5 Max in Single Turn 2 | . . . . . . . . 2 1 . . . 1 . . . . . 1 1 . 1 . 1 1 1 2 Garrison Access 2 | . . . . . . . . . . . . 1 . . . . . . . . . . . . . 1 . Garrison Relay 11 | . . . . . . . . 4 . . . . 3 . . . . . . 2 . 2 . . . . . Phase Generator 1 | . . . . . . . . 1 . . . . . . . . . . . . . . . . . . . Machines Repaired . | . . . . . . . . . . . . . . . . . . . . . . . . . . . . Machines Dismantled . | . . . . . . . . . . . . . . . . . . . . . . . . . . . . Machines Sabotaged . | . . . . . . . . . . . . . . . . . . . . . . . . . . . . Overloaded Fab Kills . | . . . . . . . . . . . . . . . . . . . . . . . . . . . . Hacking | -11 -10 -10 -9 -9 -9 -8 -8 -8 -8 -7 -7 -7 -7 -7 -6 -6 -6 -6 -5 -5 -4 -4 -3 -3 -2 -2 -1 --------- Run | Yrd Mat Min Mat Min Exi Min Mat Gar Mat Fac Was Fac Gar Fac Fac Was Fac DSF Fac Gar Fac Gar Res DSF Res Tes Acc Machines Accessed 67 | . 3 . 7 . 2 . 10 2 4 1 . 5 1 4 6 . 1 . 2 4 1 2 1 . 1 8 2 Terminals 48 | . 3 . 7 . . . 7 2 3 1 . 3 1 2 4 . 1 . 1 4 . 2 1 . . 5 1 Fabricators 4 | . . . . . . . . . . . . 1 . . . . . . . . . . . . 1 2 . Repair Stations . | . . . . . . . . . . . . . . . . . . . . . . . . . . . . Recycling Units 8 | . . . . . . . 2 . 1 . . . . 2 2 . . . . . . . . . . . 1 Scanalyzers . | . . . . . . . . . . . . . . . . . . . . . . . . . . . . Garrison Access 5 | . . . . . . . 1 . . . . 1 . . . . . . 1 . 1 . . . . 1 . Total Hacks 157 | . 8 . 19 . 2 . 26 3 10 8 . 13 2 7 21 . 1 . 2 7 1 5 2 . 2 15 3 Successful 78 | . 5 . 10 . 2 . 14 1 7 4 . 5 . . 10 . 1 . 1 3 1 1 1 . 2 10 . Failed 79 | . 3 . 9 . . . 12 2 3 4 . 8 2 7 11 . . . 1 4 . 4 1 . . 5 3 Catastrophic 13 | . . . 3 . . . 2 . . . . . . 1 3 . . . 1 1 . . . . . 1 1 Database Lockouts . | . . . . . . . . . . . . . . . . . . . . . . . . . . . . Manual 67 | . 3 . 15 . 1 . 15 . 8 5 . 6 . 2 10 . . . 1 . . . . . . . 1 Terminals 131 | . 8 . 19 . . . 21 3 9 8 . 11 2 4 18 . 1 . 1 7 . 5 2 . . 10 2 Fabricators 7 | . . . . . . . . . . . . 1 . . . . . . . . . . . . 2 4 . Repair Stations . | . . . . . . . . . . . . . . . . . . . . . . . . . . . . Recycling Units 12 | . . . . . . . 4 . 1 . . . . 3 3 . . . . . . . . . . . 1 Scanalyzers . | . . . . . . . . . . . . . . . . . . . . . . . . . . . . Garrison Access 5 | . . . . . . . 1 . . . . 1 . . . . . . 1 . 1 . . . . 1 . Terminal Hacks 34 | . 4 . 4 . 2 . 4 1 1 2 . 2 . . 3 . 1 . . 3 . 1 1 . . 5 . Record 1 | . . . . . 1 . . . . . . . . . . . . . . . . . . . . . . Robot Analysis 3 | . . . . . . . . . . . . 1 . . . . . . . . . . . . . 2 . Open Door 1 | . . . . . . . . . . . . . . . . . . . . 1 . . . . . . . Open DSF 2 | . . . . . . . . . . . . . . . . . 1 . . . . . 1 . . . . Level Access Points 1 | . . . . . . . . . 1 . . . . . . . . . . . . . . . . . . Branch Access Points 2 | . 1 . 1 . . . . . . . . . . . . . . . . . . . . . . . . Emergency Access Points 2 | . . . . . . . . 1 . . . . . . . . . . . . . 1 . . . . . Fabricator Index 1 | . . . . . . . . . . . . . . . 1 . . . . . . . . . . . . Locate Traps 3 | . 1 . 1 . . . . . . . . 1 . . . . . . . . . . . . . . . Disarm Traps 1 | . 1 . . . . . . . . . . . . . . . . . . . . . . . . . . Security Status 1 | . . . . . . . . . . 1 . . . . . . . . . . . . . . . . . Patrol Status 1 | . . . . . . . . . . 1 . . . . . . . . . . . . . . . . . Recall Investigation 2 | . . . . . . . . . . . . . . . 2 . . . . . . . . . . . . Hauler Manifests 1 | . . . . . . . 1 . . . . . . . . . . . . . . . . . . . . Registered Components 1 | . . . . . . . 1 . . . . . . . . . . . . . . . . . . . . Registered Prototypes 1 | . . . 1 . . . . . . . . . . . . . . . . . . . . . . . . Zone Layout 6 | . 1 . 1 . . . 2 . . . . . . . . . . . . . . . . . . 2 . Garrison Registry 1 | . . . . . . . . . . . . . . . . . . . . 1 . . . . . . . Security Stations 1 | . . . . . . . . . . . . . . . . . . . . 1 . . . . . . . Proto ID Catalog 1 | . . . . . 1 . . . . . . . . . . . . . . . . . . . . . . Protovariant Controls 1 | . . . . . . . . . . . . . . . . . . . . . . . . . . 1 . Fabricator Hacks 6 | . . . . . . . . . . . . . . . . . . . . . . . . . 2 4 . Load Schematic 3 | . . . . . . . . . . . . . . . . . . . . . . . . . 1 2 . Build 3 | . . . . . . . . . . . . . . . . . . . . . . . . . 1 2 . Repair Station Hacks . | . . . . . . . . . . . . . . . . . . . . . . . . . . . . Recycling Unit Hacks 3 | . . . . . . . 1 . 1 . . . . . 1 . . . . . . . . . . . . Retrieve Components 3 | . . . . . . . 1 . 1 . . . . . 1 . . . . . . . . . . . . Scanalyzer . | . . . . . . . . . . . . . . . . . . . . . . . . . . . . Garrison Access Hacks 5 | . . . . . . . 1 . . . . 1 . . . . . . 1 . 1 . . . . 1 . Unlock Access 4 | . . . . . . . 1 . . . . 1 . . . . . . 1 . 1 . . . . . . Seal Access 1 | . . . . . . . . . . . . . . . . . . . . . . . . . . 1 . Unauthorized Hacks 30 | . 1 . 6 . . . 8 . 5 2 . 2 . . 6 . . . . . . . . . . . . Terminals 29 | . 1 . 6 . . . 8 . 5 2 . 1 . . 6 . . . . . . . . . . . . Assimilate 3 | . . . . . . . 1 . . . . . . . 2 . . . . . . . . . . . . Botnet 9 | . . . 1 . . . 2 . 2 1 . 1 . . 2 . . . . . . . . . . . . Skim 17 | . 1 . 5 . . . 5 . 3 1 . . . . 2 . . . . . . . . . . . . Fabricators 1 | . . . . . . . . . . . . 1 . . . . . . . . . . . . . . . Download 1 | . . . . . . . . . . . . 1 . . . . . . . . . . . . . . . Repair Stations . | . . . . . . . . . . . . . . . . . . . . . . . . . . . . Recycling Units . | . . . . . . . . . . . . . . . . . . . . . . . . . . . . Scanalyzers . | . . . . . . . . . . . . . . . . . . . . . . . . . . . . Garrison Access . | . . . . . . . . . . . . . . . . . . . . . . . . . . . . Data Cores Recovered . | . . . . . . . . . . . . . . . . . . . . . . . . . . . . Used . | . . . . . . . . . . . . . . . . . . . . . . . . . . . . Hacking Detections 52 | . 3 . 7 . . . 9 2 3 1 . 4 1 4 5 . . . 1 3 . 1 1 . . 5 2 Full Trace Events 2 | . . . . . . . . . . . . . . . 1 . . . . . . 1 . . . . . Feedback Events . | . . . . . . . . . . . . . . . . . . . . . . . . . . . . Feedback Blocked . | . . . . . . . . . . . . . . . . . . . . . . . . . . . . Robot Schematics Acquired 1 | . . . . . . . . . . . . 1 . . . . . . . . . . . . . . . Robots Built 9 | . . . . . . . . . . . . . . . . . . . . . . . . . 3 6 . Authchips 3 | . . . . . . . . . . . . . . . . . . . . . . . . . 1 2 . Time 132 | . . . . . . . . . . . . . . . . . . . . . . . . . 44 88 . Total Robot Build Rating 36 | . . . . . . . . . . . . . . . . . . . . . . . . . 12 24 . Part Schematics Acquired . | . . . . . . . . . . . . . . . . . . . . . . . . . . . . Parts Built . | . . . . . . . . . . . . . . . . . . . . . . . . . . . . Authchips . | . . . . . . . . . . . . . . . . . . . . . . . . . . . . Time . | . . . . . . . . . . . . . . . . . . . . . . . . . . . . Total Part Build Rating . | . . . . . . . . . . . . . . . . . . . . . . . . . . . . Parts Repaired . | . . . . . . . . . . . . . . . . . . . . . . . . . . . . Time . | . . . . . . . . . . . . . . . . . . . . . . . . . . . . Parts Recycled . | . . . . . . . . . . . . . . . . . . . . . . . . . . . . Recycled Matter . | . . . . . . . . . . . . . . . . . . . . . . . . . . . . Retrieved Matter . | . . . . . . . . . . . . . . . . . . . . . . . . . . . . Retrieved Components 19 | . . . . . . . 9 . 7 . . . . . 3 . . . . . . . . . . . . Parts Scanalyzed . | . . . . . . . . . . . . . . . . . . . . . . . . . . . . Part Schematics Acquired . | . . . . . . . . . . . . . . . . . . . . . . . . . . . . Parts Damaged . | . . . . . . . . . . . . . . . . . . . . . . . . . . . . Bothacking | -11 -10 -10 -9 -9 -9 -8 -8 -8 -8 -7 -7 -7 -7 -7 -6 -6 -6 -6 -5 -5 -4 -4 -3 -3 -2 -2 -1 ------------ Run | Yrd Mat Min Mat Min Exi Min Mat Gar Mat Fac Was Fac Gar Fac Fac Was Fac DSF Fac Gar Fac Gar Res DSF Res Tes Acc Used RIF Installer 5 | . . . . . . . . 1 . . . . 2 . . . . . . 1 . 1 . . . . . Command Fork 1 | . . . . . . . . . . . . . 1 . . . . . . . . . . . . . . Patrol Navigation 1 | . . . . . . . . . . . . . . . . . . . . . . 1 . . . . . Structural Interface 1 | . . . . . . . . . . . . . 1 . . . . . . . . . . . . . . Autooverride 1 | . . . . . . . . . . . . . . . . . . . . 1 . . . . . . . Robots Hacked 44 | . . . . . . . . . . . 6 5 6 2 11 . . . . 3 3 3 . 1 3 1 . Non-combat 7 | . . . . . . . . . . . . . . 1 6 . . . . . . . . . . . . Combat 37 | . . . . . . . . . . . 6 5 6 1 5 . . . . 3 3 3 . 1 3 1 . Autooverrided 1 | . . . . . . . . . . . . . . . . . . . . . . 1 . . . . . Robot Hacks Applied 51 | . . . . . . . . . . . 6 6 7 4 15 . . . . 3 3 2 . 1 3 1 . parse_system 3 | . . . . . . . . . . . . 1 . . . . . . . . . . . . 1 1 . no_distress 1 | . . . . . . . . . . . . . . . 1 . . . . . . . . . . . . find_chute 2 | . . . . . . . . . . . . . . . 2 . . . . . . . . . . . . drop_inventory 1 | . . . . . . . . . . . . . . . 1 . . . . . . . . . . . . locate_stockpiles 1 | . . . . . . . . . . . . . . . 1 . . . . . . . . . . . . ignore_parts 2 | . . . . . . . . . . . . . . . 2 . . . . . . . . . . . . purge_threat 2 | . . . . . . . . . . . . . . 2 . . . . . . . . . . . . . ignore_targets 6 | . . . . . . . . . . . 6 . . . . . . . . . . . . . . . . find_garrison 3 | . . . . . . . . . . . . 1 . . 2 . . . . . . . . . . . . scatter_targeting 1 | . . . . . . . . . . . . . 1 . . . . . . . . . . . . . . spike_heat 1 | . . . . . . . . . . . . . 1 . . . . . . . . . . . . . . overload_power 2 | . . . . . . . . . . . . . 1 . 1 . . . . . . . . . . . . amplify_resonance 8 | . . . . . . . . . . . . 3 1 . 2 . . . . . 1 1 . . . . . overwrite_iff 3 | . . . . . . . . . . . . . 1 . . . . . . 2 . . . . . . . formatsys_low 1 | . . . . . . . . . . . . . . 1 . . . . . . . . . . . . . formatsys_high 14 | . . . . . . . . . . . . 1 2 1 3 . . . . 1 2 1 . 1 2 . . Relay Couplers Released 49 | . . . . . . . . 15 . . . 2 14 . . . . . . 8 . 8 . . . 2 . Machine Destruction 49 | . . . . . . . . 15 . . . 2 14 . . . . . . 8 . 8 . . . 2 . Attached 20 | . . . . . . . . . . . 1 2 2 2 5 . . . . 2 2 2 . 1 1 . . Fabnet Peak Effective % . | . . . . . . . . . . . . . . . . . . . . . . . . . . . . Robots Rewired 5 | . . . . . . . . . . . . . . . . . . . . 4 . . . . . 1 . Allies Hacked 3 | . . . . . . . . . . . . . . . . . . . . 2 . . . . 1 . . Hacks Repelled . | . . . . . . . . . . . . . . . . . . . . . . . . . . . . Allies | -11 -10 -10 -9 -9 -9 -8 -8 -8 -8 -7 -7 -7 -7 -7 -6 -6 -6 -6 -5 -5 -4 -4 -3 -3 -2 -2 -1 -------- Run | Yrd Mat Min Mat Min Exi Min Mat Gar Mat Fac Was Fac Gar Fac Fac Was Fac DSF Fac Gar Fac Gar Res DSF Res Tes Acc Total Allies 62 | . . 3 . . . . . . . . 19 1 3 2 3 2 . . . 7 3 4 . 2 6 7 . Largest Group 19 | . . 3 3 3 . . . . . . 19 16 12 7 1 2 2 2 2 4 5 3 . 2 3 4 . Highest-Rated Group 465 | . . 40 40 40 . . . . . . 465 423 333 177 41 282 282 282 282 282 227 147 . 206 116 183 . Highest-Rated Ally 142 | . . 16 16 16 . . . . . . 35 35 35 33 41 141 141 141 141 141 58 50 . 142 58 123 . Total Orders . | . . . . . . . . . . . . . . . . . . . . . . . . . . . . Ally Attacks 523 | . . . 40 5 . . . . . . 178 53 72 44 12 6 . 7 1 16 17 27 . 12 12 21 . Total Damage 16775 | . . . 409 41 . . . . . . 3725 1772 1853 902 222 300 . 297 38 688 313 910 . 601 316 4388 . Kills 99 | . . . 8 1 . . . . . . 9 11 17 9 2 . . 6 1 5 2 3 . 3 1 21 . Allies Corrupted 4 | . . . . . . . . . . . . 1 . . 1 . . . . . 1 . . 1 . . . Allies Melted . | . . . . . . . . . . . . . . . . . . . . . . . . . . . . Field Lobotomies 5 | . . . . . . . . . . . . . . . . 2 . . . . . 2 . 1 . . . Intel | -11 -10 -10 -9 -9 -9 -8 -8 -8 -8 -7 -7 -7 -7 -7 -6 -6 -6 -6 -5 -5 -4 -4 -3 -3 -2 -2 -1 ------- Run | Yrd Mat Min Mat Min Exi Min Mat Gar Mat Fac Was Fac Gar Fac Fac Was Fac DSF Fac Gar Fac Gar Res DSF Res Tes Acc Active Infowar (turns) 6457 | 28 218 . . . . 1 429 1464 . . 120 389 555 459 345 74 57 131 . . . . . 358 648 738 443 Optics 355 | . . . . . . . . . . . . . . . . . . . . . . . . . . 355 . Sensors 954 | . . . . . . 1 . . . . 120 389 1 . . . . . . . . . . . . . 443 Seismic 675 | 28 218 . . . . . 429 . . . . . . . . . . . . . . . . . . . . Cloaking 273 | . . . . . . . . . . . . . . . . . . . . . . . . 166 107 . . Jamming 4826 | . . . . . . . . 1464 . . . . 554 459 345 74 57 131 . . . . . 358 648 736 . Robot Analysis Total 3 | . . . . . . . . . . . . 1 . . . . . . . . . . . . . 2 . Derelict Logs Recovered 4 | . . 3 . 1 . . . . . . . . . . . . . . . . . . . . . . . Drone Launches . | . . . . . . . . . . . . . . . . . . . . . . . . . . . . Drone Recoveries . | . . . . . . . . . . . . . . . . . . . . . . . . . . . . Exploration | -11 -10 -10 -9 -9 -9 -8 -8 -8 -8 -7 -7 -7 -7 -7 -6 -6 -6 -6 -5 -5 -4 -4 -3 -3 -2 -2 -1 ------------- Run | Yrd Mat Min Mat Min Exi Min Mat Gar Mat Fac Was Fac Gar Fac Fac Was Fac DSF Fac Gar Fac Gar Res DSF Res Tes Acc Turns Passed 16324 | 258 973 572 1110 793 424 687 1756 1700 745 54 335 390 555 521 443 74 57 557 387 533 164 347 8 453 648 1181 599 Spaces Moved 12322 | 124 530 492 638 575 370 420 1140 878 273 87 324 400 545 559 758 86 42 473 327 634 277 560 20 282 371 773 364 Core 47 | 19 . . . . . 11 . . . . . . . . . . . . . . . . . . . . 17 Treads 1117 | 105 389 . . . . . . 350 273 . . . . . . . . . . . . . . . . . . Legs 1723 | . . . . . . . . . . . . . . . . . . . . . . . . 262 371 773 317 Wheels 4293 | . 141 492 638 575 370 409 1140 528 . . . . . . . . . . . . . . . . . . . Hover 5112 | . . . . . . . . . . 87 324 400 545 559 758 86 42 473 327 634 277 560 20 20 . . . Flight 30 | . . . . . . . . . . . . . . . . . . . . . . . . . . . 30 Fastest Speed 26 | 50 110 110 110 110 110 110 95 101 160 52 52 52 48 48 38 38 38 38 38 38 34 26 34 34 120 120 34 Average Speed 90 | 143 146 110 119 111 110 140 107 149 160 52 52 52 50 48 38 38 38 38 38 38 34 35 34 113 120 120 113 Slowest Speed 750 | 160 160 110 125 115 125 750 125 240 160 52 52 52 108 48 42 38 38 98 38 42 38 100 34 120 120 190 190 Overloaded Moves 22 | . . . . . . . . . . . . . . . . . . . . . . 22 . . . . . Propulsion Burnouts . | . . . . . . . . . . . . . . . . . . . . . . . . . . . . Robots Hopped 3 | . . . . . . . . . . . . . . . . . . . . . . . . . . . 3 Potential Cave-ins . | . . . . . . . . . . . . . . . . . . . . . . . . . . . . Cave-ins Triggered . | . . . . . . . . . . . . . . . . . . . . . . . . . . . . Exploration Rate (%) 52 | 6 77 97 63 79 68 90 78 94 33 2 94 11 76 12 18 71 2 95 5 68 7 75 . 95 15 76 12 Regions Visited 27 Branch Regions 5 Pre-discovered Areas 4 | . . 1 . 1 1 . 1 . . . . . . . . . . . . . . . . . . . . Known Exits Taken 10 | . 1 . 1 . . 1 1 . 1 . . 1 . . . . 1 . 1 . 1 . 1 . . . . Unknown Exits Taken 7 | 1 . 1 . 1 1 . . . . . . . . 1 . . . . . . . . . . 1 1 . Scrap Searched 6 | . . 1 . 2 . 3 . . . . . . . . . . . . . . . . . . . . . Spaces Dug 38 | . . . . . . . . . . . . 9 2 . . . . . 17 . . . . . . 10 . Terrain Destroyed 422 | . . . . 4 . 2 29 83 27 . . 18 3 . . . . . 47 3 . 2 . . 6 107 91 Melee . | . . . . . . . . . . . . . . . . . . . . . . . . . . . . Projectile 64 | . . . . 4 . 2 29 . . . . . 3 . . . . . . . . 2 . . 6 14 4 AOE 355 | . . . . . . . . 83 27 . . 18 . . . . . . 47 . . . . . . 93 87 Terrain Rammed . | . . . . . . . . . . . . . . . . . . . . . . . . . . . . Walls Destroyed . | . . . . . . . . . . . . . . . . . . . . . . . . . . . . Machines Disabled . | . . . . . . . . . . . . . . . . . . . . . . . . . . . . Actions | -11 -10 -10 -9 -9 -9 -8 -8 -8 -8 -7 -7 -7 -7 -7 -6 -6 -6 -6 -5 -5 -4 -4 -3 -3 -2 -2 -1 --------- Run | Yrd Mat Min Mat Min Exi Min Mat Gar Mat Fac Was Fac Gar Fac Fac Was Fac DSF Fac Gar Fac Gar Res DSF Res Tes Acc Total 16289 | 166 647 512 861 681 389 489 1481 1160 498 97 487 570 784 797 868 123 82 848 586 813 332 657 20 393 467 960 521 Wait 1972 | . 27 13 88 42 . 33 121 83 156 . 139 135 100 182 2 34 41 318 249 34 14 14 . 17 . 43 87 Move 12292 | 123 529 491 637 574 369 419 1139 877 272 87 323 399 544 558 758 85 41 472 326 633 277 558 19 281 370 772 359 Hop 2 | . . . . . . . . . . . . . . . . . . . . . . . . . . . 2 Pick Up 390 | 12 12 1 31 6 7 2 29 41 8 2 9 9 20 5 22 . . 23 3 20 7 24 1 30 18 28 20 Fast Attach 51 | . 6 . 1 . . 6 17 7 3 . . . 1 . 1 . . 2 . . . . . 3 1 3 . Attach 168 | 7 2 . 10 4 4 2 1 3 1 5 . 1 12 4 15 1 . 2 3 7 10 14 . 14 14 17 15 Detach 13 | . . . . 2 . . . . . . . . 4 . . 1 . 1 . . . . . . . 4 1 Swap 169 | . 7 1 9 7 2 2 21 11 8 . 3 7 7 6 5 . . 5 2 15 5 6 . 5 7 23 5 Drop 273 | . 15 1 20 6 7 6 49 24 7 3 5 4 12 5 11 . . 19 1 12 3 3 . 28 6 19 7 Fire 828 | 24 49 5 65 36 . 19 104 74 43 . 8 14 45 15 54 2 . 6 2 79 16 29 . 15 50 49 25 Melee . | . . . . . . . . . . . . . . . . . . . . . . . . . . . . Ram 9 | . . . . . . . . . . . . . . . . . . . . . . 9 . . . . . Kick 3 | . . . . . . . . . . . . . . . . . . . . . . . . . 1 2 . Crush . | . . . . . . . . . . . . . . . . . . . . . . . . . . . . Escape Stasis 114 | . . . . . . . . 40 . . . . 39 22 . . . . . 13 . . . . . . . Rewire 1 | . . . . . . . . . . . . 1 . . . . . . . . . . . . . . . Trap 4 | . . . . 4 . . . . . . . . . . . . . . . . . . . . . . . Miscellaneous . | . . . . . . . . . . . . . . . . . . . . . . . . . . . . Route ------- -11/Scrapyard -10/Materials (discovered 3 exits: *Mat / *Min / [*Sub]) -10/Mines (discovered 2 exits: *Mat x2) -9/Materials (discovered 6 exits: *Mat x3 / *Min / *Sto x2) -9/Mines (discovered 3 exits: *Mat x2 / *Exi) -9/Exiles -8/Mines (discovered 2 exits: *Mat x2) -8/Materials (discovered 4 exits: *Fac x3 / Gar) -8/Garrison (discovered 3 exits: *Mat x3) -8/Materials (discovered 3 exits: *Fac x3) -7/Factory -7/Waste -7/Factory (discovered 2 exits: *Fac / Gar) -7/Garrison (discovered 2 exits: *Fac x2) -7/Factory (discovered 2 exits: *Fac / [*Low]) -6/Factory -6/Waste -6/Factory -6/DSF -5/Factory (discovered 2 exits: *Fac / Gar) -5/Garrison (discovered 3 exits: *Fac x3) -4/Factory -4/Garrison (discovered 3 exits: *Res x2 / [*Fac]) -3/Research -3/DSF -2/Research -2/Testing -1/Access History --------- Turn | Location | Event 5 | -11/Scrapyard | Discovered new exit (range 15) 259 | -11/Scrapyard | Entered Materials 309 | -10/Materials | Build established: Mutant 317 | -10/Materials | Identified exit to Mines 1013 | -10/Materials | Discovered new exit (range 16) 1074 | -10/Materials | Discovered new exit (range 6) 1232 | -10/Materials | Entered Mines 1486 | -10/Mines | Learned Materials security intel 1499 | -10/Mines | Learned location of 2 exits from Materials 1507 | -10/Mines | Discovered new exit (range 8) 1642 | -10/Mines | Assisted by bots powering up and referring to "LRC-V3" 1661 | -10/Mines | Learned Materials terminal intel 1662 | -10/Mines | Learned location of Storage (-9) 1762 | -10/Mines | Discovered new exit (range 9) 1804 | -10/Mines | Entered Materials 1804 | -9/Materials | Accompanied by 3 allies 1804 | -9/Materials | Evolved 2 slots: Utility x2 1805 | -9/Materials | Identified exit to Materials 1807 | -9/Materials | Loaded intel: 12 terminal locations 1993 | -9/Materials | Discovered new exit (range 12) 2259 | -9/Materials | Identified exit to Mines 2259 | -9/Materials | Identified exit to Storage 2743 | -9/Materials | Learned location of 1 exit from Recycling 2799 | -9/Materials | Learned Storage stockpile data 2814 | -9/Materials | Learned Storage trap positions 2818 | -9/Materials | Learned Storage stockpile data 2820 | -9/Materials | Loaded intel: 15 trap records 2821 | -9/Materials | Learned location of 2 exits from Materials 2914 | -9/Materials | Entered Mines 2914 | -9/Mines | Accompanied by 3 allies 2921 | -9/Mines | Learned location of Zion (-6) 3080 | -9/Mines | Discovered exit to Materials (range 11) 3113 | -9/Mines | Excavation squad dispatched 3113 | -9/Mines | A large section of the Mines collapsed 3441 | -9/Mines | Found a hidden stash of uninstalled traps 3474 | -9/Mines | Discovered exit to Materials (range 9) 3575 | -9/Mines | Received a Rocket Launcher from a helpful Derelict 3642 | -9/Mines | Deemed a non-threat by the Exiles lab entrance 3673 | -9/Mines | Met a Derelict testing a Signal Generator 3700 | -9/Mines | Discovered new exit (range 5) 3707 | -9/Mines | Entered Exiles 3735 | -9/Exiles | Met 8R-AWN 3753 | -9/Exiles | Met EX-HEX 3801 | -9/Exiles | Met EX-DEC 3887 | -9/Exiles | Met EX-BIN 3902 | -9/Exiles | Aligned with FarCom system 3903 | -9/Exiles | Given EX-Vault access code 3929 | -9/Exiles | Opened EX-Vault 3941 | -9/Exiles | Found Field Lobotomy Kit 3945 | -9/Exiles | Found Chronowheel 3952 | -9/Exiles | Found Lightpack 2.0 3974 | -9/Exiles | Warned to stay clear of 0b10 Research branches 4041 | -9/Exiles | Discovered new exit (range 14) 4131 | -9/Exiles | Stole three prototypes: Lightpack 2.0, Chronowheel, Field Lobotomy Kit 4131 | -9/Exiles | Entered Mines 4178 | -8/Mines | Lost 4 parts (1p2n1u) 4572 | -8/Mines | Discovered exit to Materials (range 13) 4647 | -8/Mines | Build established: Scavenger-Mutant 4763 | -8/Mines | Discovered exit to Materials (range 9) 4818 | -8/Mines | Entered Materials 4818 | -8/Materials | Evolved 2 slots: Propulsion x1, Utility x1 4819 | -8/Materials | Identified exit to Factory 5568 | -8/Materials | Build established: Mutant 6246 | -8/Materials | Learned Storage trap positions 6330 | -8/Materials | Identified exit to Garrison 6390 | -8/Materials | Learned Storage trap positions 6410 | -8/Materials | Discovered exit to Factory (range 10) 6447 | -8/Materials | Learned location of 1 exit from Lower Caves 6496 | -8/Materials | Learned 4 Factory zone layouts 6535 | -8/Materials | Learned Storage interactive machine intel 6542 | -8/Materials | Garrison activated, responded to threat 6574 | -8/Materials | Entered Garrison 6652 | -8/Garrison | Triggered checkpoint 6675 | -8/Garrison | Garrison Relay disabled 6794 | -8/Garrison | Triggered checkpoint 6890 | -8/Garrison | Discovered new exit (range 12) 6915 | -8/Garrison | Installed Relay Interface Framework 7076 | -8/Garrison | Garrison Relay disabled 7178 | -8/Garrison | Phase Generator disabled 7254 | -8/Garrison | Triggered checkpoint 7319 | -8/Garrison | Discovered new exit (range 10) 7440 | -8/Garrison | Triggered checkpoint 7487 | -8/Garrison | Garrison Relay disabled 7667 | -8/Garrison | Triggered checkpoint 7697 | -8/Garrison | Triggered checkpoint 7771 | -8/Garrison | Build established: Scavenger-Mutant 7797 | -8/Garrison | Garrison Relay disabled 7861 | -8/Garrison | Discovered new exit (range 11) 7986 | -8/Garrison | Core integrity fell below 50% 8274 | -8/Garrison | Entered Materials 8402 | -8/Materials | Build established: Bothacker-Mutant 9019 | -8/Materials | Entered Factory 9019 | -7/Factory | Evolved 2 slots: Utility x2 9021 | -7/Factory | FarCom data flow suspended 9073 | -7/Factory | Sucked down chute 9073 | -7/Factory | Entered Waste 9095 | -7/Waste | Spotted C-40 Crusher 9112 | -7/Waste | Spotted C-40 Crusher 9117 | -7/Waste | Spotted C-40 Crusher 9119 | -7/Waste | Spotted C-40 Crusher 9153 | -7/Waste | Spotted C-40 Crusher 9157 | -7/Waste | Spotted C-40 Crusher 9164 | -7/Waste | Discovered new exit (range 16) 9172 | -7/Waste | Warlord forces began an assault 9272 | -7/Waste | Allies destroyed C-40 Crusher 9384 | -7/Waste | Allies destroyed C-40 Crusher 9408 | -7/Waste | Entered Factory 9408 | -7/Factory | Accompanied by 16 allies 9492 | -7/Factory | Discovered new exit (range 13) 9676 | -7/Factory | Identified exit to Garrison 9798 | -7/Factory | Entered Garrison 9798 | -7/Garrison | Accompanied by 11 allies 9842 | -7/Garrison | Garrison Relay disabled 9850 | -7/Garrison | Triggered checkpoint 9932 | -7/Garrison | Triggered checkpoint 9932 | -7/Garrison | Triggered checkpoint 9940 | -7/Garrison | Triggered checkpoint 9950 | -7/Garrison | Triggered checkpoint 9985 | -7/Garrison | Lost 4 allies 9992 | -7/Garrison | Discovered new exit (range 10) 10040 | -7/Garrison | Triggered checkpoint 10066 | -7/Garrison | P-70 Sage assimilated allied WK-12T(m) 10081 | -7/Garrison | P-70 Sage assimilated allied Commando 4a 10103 | -7/Garrison | Lost 4 parts (1p1n2w) 10104 | -7/Garrison | Expanded RIF knowledge: Structural Interface 10121 | -7/Garrison | Garrison Relay disabled 10148 | -7/Garrison | Expanded RIF knowledge: Command Fork 10192 | -7/Garrison | Discovered new exit (range 10) 10199 | -7/Garrison | Garrison Relay disabled 10353 | -7/Garrison | Entered Factory 10353 | -7/Factory | Accompanied by 6 allies 10513 | -7/Factory | Discovered new exit (range 4) 10600 | -7/Factory | Discovered new exit (range 10) 10652 | -7/Factory | System corruption reached 10% 10712 | -7/Factory | Lost 4 allies 10874 | -7/Factory | Entered another Factory area 10874 | -6/Factory | Evolved 2 slots: Propulsion x1, Utility x1 11208 | -6/Factory | Discovered new exit (range 9) 11317 | -6/Factory | Sucked down chute 11317 | -6/Factory | Entered Waste 11325 | -6/Waste | Spotted C-40 Crusher 11326 | -6/Waste | Spotted C-40 Crusher 11326 | -6/Waste | Spotted C-40 Crusher 11332 | -6/Waste | EMP discharged 11332 | -6/Waste | System corruption reached 10% 11336 | -6/Waste | Spotted C-40 Crusher 11338 | -6/Waste | Spotted C-40 Crusher 11338 | -6/Waste | Discovered new exit (range 12) 11340 | -6/Waste | Assimilated C-40 Crusher with FLK Orb 11343 | -6/Waste | Assimilated C-40 Crusher with FLK Orb 11391 | -6/Waste | Entered Factory 11391 | -6/Factory | Accompanied by 2 allies 11426 | -6/Factory | Identified exit to DSF 11448 | -6/Factory | Entered DSF 11448 | -6/DSF | Accompanied by 2 allies 11449 | -6/DSF | Joined Warlord attack on 0b10 via DSF 11467 | -6/DSF | Additional patrols routed to DSF 11529 | -6/DSF | Discovered new exit (range 15) 12005 | -6/DSF | Entered Factory 12005 | -5/Factory | Accompanied by 2 allies 12005 | -5/Factory | Evolved 2 slots: Utility x2 12018 | -5/Factory | Identified exit to Garrison 12038 | -5/Factory | Discovered new exit (range 7) 12392 | -5/Factory | Entered Garrison 12392 | -5/Garrison | Accompanied by 2 allies 12500 | -5/Garrison | Triggered checkpoint 12512 | -5/Garrison | Spotted B-75 Beast 12514 | -5/Garrison | Triggered checkpoint 12523 | -5/Garrison | Assimilated Beast 6a with formatsys_high 12530 | -5/Garrison | Triggered checkpoint 12550 | -5/Garrison | Discovered new exit (range 23) 12550 | -5/Garrison | Discovered new exit (range 32) 12550 | -5/Garrison | Discovered new exit (range 60) 12622 | -5/Garrison | Destroyed 8 combat bots 12631 | -5/Garrison | Learned Factory security intel 12664 | -5/Garrison | Triggered checkpoint 12667 | -5/Garrison | Expanded RIF knowledge: Autooverride 12685 | -5/Garrison | Garrison Relay disabled 12813 | -5/Garrison | Garrison Relay disabled 12925 | -5/Garrison | Entered Factory 12925 | -4/Factory | Accompanied by 4 allies 12925 | -4/Factory | Evolved 2 slots: Propulsion x1, Utility x1 13071 | -4/Factory | Lost 5 allies 13089 | -4/Factory | Identified exit to Garrison 13089 | -4/Factory | Entered Garrison 13196 | -4/Garrison | Garrison Relay disabled 13232 | -4/Garrison | Discovered new exit (range 5) 13235 | -4/Garrison | Triggered checkpoint 13239 | -4/Garrison | Assimilated X-82 Rainmaker with FLK Orb 13242 | -4/Garrison | Assimilated X-82 Rainmaker with FLK Orb 13301 | -4/Garrison | Triggered checkpoint 13301 | -4/Garrison | Triggered checkpoint 13318 | -4/Garrison | Triggered checkpoint 13346 | -4/Garrison | Garrison Relay disabled 13359 | -4/Garrison | Discovered new exit (range 10) 13376 | -4/Garrison | Triggered checkpoint 13393 | -4/Garrison | Spotted B-86 Titan 13414 | -4/Garrison | Discovered new exit (range 10) 13422 | -4/Garrison | Expanded RIF knowledge: Patrol Navigation 13436 | -4/Garrison | Entered Research 13436 | -3/Research | Evolved 2 slots: Power x1, Weapon x1 13444 | -3/Research | Identified exit to DSF 13444 | -3/Research | Entered DSF 13451 | -3/DSF | Assimilated H-71 Marshal with FLK Orb 13463 | -3/DSF | Lost 7 parts (2n3u2w) 13530 | -3/DSF | Additional patrols routed to DSF 13586 | -3/DSF | Discovered new exit (range 15) 13770 | -3/DSF | Build established: Bothacker-Tank 13897 | -3/DSF | Entered Research 13897 | -2/Research | Evolved 2 slots: Power x1, Utility x1 13953 | -2/Research | Fabricated B-48 Gladiator (x3) 14032 | -2/Research | Lost 3 allies 14296 | -2/Research | Lost 3 allies 14327 | -2/Research | Lost 3 parts (3u) 14420 | -2/Research | Spotted B-90 Cyclops 14538 | -2/Research | Discovered new exit (range 6) 14545 | -2/Research | Entered Testing 14615 | -2/Testing | Found Prototype Energy Gun 14647 | -2/Testing | Identified Warp Gun 14703 | -2/Testing | Rewired PD-EGH7I5BEO8 14729 | -2/Testing | Build established: Hauler-Tank 14735 | -2/Testing | Found Prototype Ballistic Cannon 14789 | -2/Testing | Discovered new exit (range 12) 14795 | -2/Testing | First assault squad dispatched 14811 | -2/Testing | Found Prototype Energy Cannon 14831 | -2/Testing | Identified Null Cannon 14833 | -2/Testing | Identified Perforator 14891 | -2/Testing | Found Prototype Energy Cannon 14905 | -2/Testing | Identified Potential Cannon 15151 | -2/Testing | Build established: Hauler-Mutant 15166 | -2/Testing | Found Fusion Bomb Launcher 15218 | -2/Testing | Found Prototype Hackware 15241 | -2/Testing | Fabricated B-48 Gladiator? 15246 | -2/Testing | Spotted Superbehemoth 15264 | -2/Testing | Found Prototype Protection 15278 | -2/Testing | Spotted Striker 15286 | -2/Testing | Superbehemoth self-activated to run performance analysis 15310 | -2/Testing | Found Prototype Launcher 15331 | -2/Testing | Identified Gui. Micro-nuke Launcher 15333 | -2/Testing | Identified System Mapper 15374 | -2/Testing | Fabricated B-48 Gladiator? 15408 | -2/Testing | Identified Centrium Heavy Armor Plating 15520 | -2/Testing | Scanned by Researcher 15646 | -2/Testing | Spotted V0-14Q(L) 15716 | -2/Testing | Build established: Hauler-Tank 15726 | -2/Testing | Entered Access 15726 | -1/Access | Evolved 2 slots: Propulsion x1, Utility x1 15757 | -1/Access | Lost 5 parts (2p2u1w) 16214 | -1/Access | Spotted B-99 Colossus 16226 | -1/Access | First assault squad dispatched 16282 | -1/Access | System corruption reached 10% 16302 | -1/Access | Released all parts (5) 16304 | -1/Access | Core integrity fell below 50% 16311 | -1/Access | Core integrity fell below 20% 16325 | -1/Access | Destroyed by P-80 Master with Gamma Rifle Last Messages --------------- 16305_ Slug penetrates Wall. 16305_ Penetrated by Slug. 16306_ Slug penetrates Wall. 16307_ Penetrated by Slug. 16307_ Slug penetrates Energy Cycler. 16308_ Penetrated by Slug. 16309_ Slug penetrates Wall. 16310_ Identified Cld. Field Propulsion Drive. 16310_ Slug penetrates Wall. 16313_ System corrupted: Energy discharge (-15). 16313_ Slug penetrates Wall. 16314_ Cld. Field Propulsion Drive destroyed. 16314_ Slug penetrates Door. 16314_ Slug penetrates G-73 Enforcer. 16314_ Penetrated by Slug. 16315_ Cld. Field Propulsion Drive destroyed. 16316_ Slug penetrates Wall. 16324_ P-80 Master resets P-80 Master, system corruption cleaned. 16325_ Slug penetrates Wall. 16325_ Cld. Field Propulsion Drive destroyed. Map ----- +----------------------------------------------------+ | ?????????????????????????????????????????????????? | | ?????????????????????????????????????????????????? | | ?????????????????????????????????????????????????? | | ?????????????????????????????????????????????????? | | ?????????????????????????????????????????????????? | | ?????????????????????????????????????????????????? | | ?????????????????????????????????????????????????? | | ?????????????????????????????????????????????????? | | ?????????????????????????????????????????????????? | | ?????????????????????????????????????????????????? | | ?????????????????????????????????????????????????? | | ?????????????????????????????????????????????????? | | ?????????????????????????????????????????????????? | | ?????????????????????????????????????????????????? | | ?????????????????????????????????????????????????? | | ?????????????????????????????????????????????????? | | ?????????????????????????????????????????????????? | | ?????????????????????????????????????????????????? | | ?????????????????????????????????????????????????? | | ????????????##+#################+##+####?????????? | | ???????????? #?????????? | | ??????????? #?????????? | | ??????????? ####??????? | | ?????????? +??????? | | ?????????? p #?????????? | | ?????????? w @ p #?????????? | | ?????????? k #?????????? | | ?????????????#+######+##########h #?????????? | | ????????????????????????# # #?????????? | | ????????????????????????# / #?????????? | | ????????????????????????# / #?????????? | | ????????????????????????# " # #?????????? | | ????????????????????????# "" # #?????????? | | ????????????????????????# "" # ####??????? | | ????????????????????????# "" # ?????? | | ????????????????????????# "" # ????? | | ????????????????????????# "" # ????? | | ????????????????????????# "" # ????? | | ????????????????????????# " # ?????? | | ????????????????????????# # ?????? | | ????????????????????????# # ??????? | | ????????????????????????# # ########### | | ???????????##############"######[ # = | | ???????????# # #????#= [ # | | ???????????# # ######!]= # | | ???????????# # !!!%!%= # = | | ???????????? " # =![*]!!% # | | ???????????????"""" # =[=!= # "" | | ???????????????"""" " !!!!=* " "" | | ???????????????""""" # ! # """""" | +----------------------------------------------------+ Best States ------------- Heat Dissipation 125 Energy Generation 83 Energy Capacity 1350 Matter Stores 300 Matter Capacity 300 Sight Range 22 Robot Scan Range 16 Terrain Scan Density 10 Jamming Range 16 Cloak Strength 2 Power Amplification 30 Base Temperature (-) 200 Armor Coverage 600 Propulsion Shielding 66 Utility Shielding 66 Weapon Cycling 20 Phase Shifting 15 Evasion (%) 82 Targeting Accuracy 8 Target Analysis 6 Core Analysis 6 Recoil Reduction 3 Energy Filtering 50 Particle Charging 25 Offensive Hacking 20 Relay Coupler Types 1 Relay Coupler Value 34 Authchip Count 10 Trap Extractor Capacity 4 Item Schematics ----------------- None Robot Schematics ------------------ B-48 Gladiator | -7/Factory | Downloaded Fabricated ------------ B-48 Gladiator | x3 | -2/Research | Authchip B-48 Gladiator | x3 | -2/Testing | Authchip B-48 Gladiator | x3 | -2/Testing | Authchip Repaired ---------- Nothing Alien Tech Used ----------------- None Achievements -------------- None Challenges ------------ None Game ------ Seed SegregatorLightDerivative Manual? 0 Play Time 03:27:22 Cumulative 346.9 hours Start 2025.10.02 @ 04:57:56 End 2025.10.03 @ 01:57:18 Sessions 36 Manual Loads 0 Difficulty Rogue Special Mode None Game No. 455 Rogue 455 Adventurer 0 Explorer 0 Win Type - Total 11 Types 6/0/1/2/1/0/1/0/0/0 Lore% 87 Gallery% 82 Achievement% 69 Wizard Run 0 Options --------- Layout 0 ASCII 0 Keyboard 0 Movement Mouse Keybinds 0 Fullscreen 1 Font 18/X11 Map View 76x50 Zoom Use 0% Tactical HUD 1 Map Filters NONE Filters NONE Steam 1 RUN: 11978e5f-5b53-431a-bf35-7deeff5f6d68